bitfinex/quotes_BTCUSD_20240611
["timestamp","ask_amount","ask_price","bid_price","bid_amount"]
[1718101111357,0.019416,67217.0,67216.0,1.23088029]
[1718101111768,0.009416,67217.0,67216.0,1.22788029]
[1718101112187,0.011416,67217.0,67216.0,1.23088029]
[1718101112389,0.011416,67217.0,67216.0,1.23058529]
[1718101113627,0.010416,67217.0,67216.0,1.23058529]
[1718101114039,0.009416,67221.0,67220.0,0.17443088]
[1718101114263,0.009416,67221.0,67220.0,1.27048844]
[1718101115269,0.010416,67221.0,67220.0,1.27348844]
[1718101115473,0.010416,67221.0,67220.0,1.27048844]
[1718101115878,0.009416,67224.0,67223.0,0.27442388]
[1718101116053,0.009416,67224.0,67223.0,1.31664381]
[1718101116258,0.009416,67224.0,67223.0,1.45594195]
[1718101118367,0.009416,67224.0,67223.0,1.45894195]
[1718101119202,0.009416,67224.0,67223.0,1.45594195]
[1718101119412,0.009416,67224.0,67223.0,1.45994195]
[1718101120145,0.009416,67224.0,67223.0,1.35994195]
[1718101120399,0.009416,67224.0,67223.0,1.35594195]
[1718101121245,0.009416,67224.0,67223.0,1.34594195]
[1718101121454,0.009416,67224.0,67223.0,1.35594195]
[1718101121887,0.010416,67224.0,67223.0,1.35994195]
[1718101122093,0.009416,67224.0,67223.0,1.35594195]
[1718101122466,0.010416,67224.0,67223.0,1.34994195]
[1718101122686,0.010416,67224.0,67223.0,1.24994195]
[1718101124049,0.010416,67224.0,67223.0,1.35994195]
[1718101125018,0.010416,67224.0,67223.0,1.35594195]
[1718101125422,0.010416,67224.0,67223.0,1.35994195]
[1718101125617,0.010416,67224.0,67223.0,1.35594195]
[1718101125819,0.010416,67224.0,67223.0,0.39928395]
[1718101126348,0.009416,67224.0,67223.0,0.56204195]
[1718101126553,0.009416,67224.0,67223.0,1.33714195]
[1718101127398,0.009416,67224.0,67223.0,1.63465895]
[1718101128823,0.009416,67224.0,67223.0,1.63065895]
[1718101129292,0.009416,67224.0,67223.0,1.63465895]
[1718101129415,0.009416,67224.0,67223.0,1.63065895]
[1718101129863,0.009416,67224.0,67223.0,1.63465895]
[1718101131190,0.009416,67224.0,67223.0,1.33714195]
[1718101134622,0.009416,67224.0,67223.0,1.63465895]
[1718101134776,0.009416,67224.0,67223.0,1.83465895]
[1718101134985,0.009416,67224.0,67223.0,1.33714195]
[1718101135388,0.009416,67224.0,67223.0,1.32714195]
[1718101135598,0.009416,67224.0,67223.0,0.38761807]
[1718101135806,0.009416,67224.0,67223.0,0.26398581]
[1718101136792,0.009416,67224.0,67223.0,0.25998581]
[1718101137383,0.009416,67224.0,67223.0,0.26398581]
[1718101137649,0.016416,67224.0,67223.0,0.26398581]
[1718101138059,0.009416,67224.0,67223.0,0.40874381]
[1718101138238,0.009416,67224.0,67223.0,0.45795195]
[1718101138454,0.016416,67224.0,67223.0,0.45795195]
[1718101138939,0.016416,67224.0,67223.0,0.46795195]
[1718101139117,0.016416,67224.0,67223.0,0.45795195]
[1718101139580,0.020416,67224.0,67223.0,0.45795195]
[1718101139793,0.009416,67224.0,67223.0,0.46795195]
[1718101139983,0.009416,67224.0,67223.0,0.47095195]
[1718101140149,0.010416,67224.0,67223.0,0.47095195]
[1718101140377,0.010416,67224.0,67223.0,1.23245195]
[1718101141297,0.010416,67224.0,67223.0,1.22245195]
[1718101141494,0.010416,67224.0,67223.0,1.23245195]
[1718101142473,0.010416,67224.0,67223.0,1.22245195]
[1718101142671,0.010416,67224.0,67223.0,1.23245195]
[1718101143332,0.010416,67224.0,67223.0,1.22245195]
[1718101143508,0.010416,67224.0,67223.0,1.23245195]
[1718101144193,0.010416,67224.0,67223.0,1.45918342]
[1718101144419,0.010416,67224.0,67223.0,1.23245195]
[1718101145691,0.010416,67224.0,67223.0,1.22245195]
[1718101147347,0.010416,67224.0,67223.0,1.23245195]
[1718101148452,0.010416,67224.0,67223.0,1.22245195]
[1718101149329,0.010416,67224.0,67223.0,0.46095195]
[1718101150449,0.010416,67224.0,67223.0,0.46065732]
[1718101151146,0.010416,67224.0,67223.0,0.47065732]
[1718101151840,0.010416,67224.0,67223.0,0.46065732]
[1718101152283,0.010416,67224.0,67223.0,0.47065732]
[1718101152499,0.010416,67224.0,67223.0,0.47036232]
[1718101154270,0.010416,67224.0,67223.0,0.46036232]
[1718101154704,0.010416,67224.0,67223.0,0.47036232]
[1718101154910,0.010416,67224.0,67223.0,0.46036232]
[1718101156628,0.01021862,67224.0,67223.0,0.46036232]
[1718101158534,0.01021862,67224.0,67223.0,0.44469644]
[1718101158768,0.01021862,67224.0,67223.0,0.003]
[1718101159000,0.94479129,67224.0,67223.0,0.003]
[1718101159220,1.68431022,67224.0,67223.0,0.003]
[1718101159437,0.07215996,67256.0,67223.0,0.003]
[1718101159651,1.72260882,67251.0,67223.0,0.003]
[1718101159852,0.5,67228.0,67223.0,0.003]
[1718101160061,0.0867,67224.0,67220.0,0.1]
[1718101160279,0.1820943,67227.0,67220.0,0.1]
[1718101160280,0.01110054,67225.0,67222.0,0.3]
[1718101160453,0.01110054,67226.0,67225.0,0.2]
[1718101160694,0.49866551,67229.0,67225.0,0.14431993]
[1718101160695,0.01110054,67227.0,67225.0,0.14431993]
[1718101160918,0.49866551,67229.0,67228.0,0.2]
[1718101161125,0.49866551,67229.0,67226.0,0.3]
[1718101161349,0.49866551,67229.0,67228.0,0.45998581]
[1718101161563,0.148721,67240.0,67228.0,0.45998581]
[1718101161564,0.01110054,67236.0,67235.0,0.1]
[1718101161799,0.29629893,67236.0,67235.0,0.1]
[1718101162000,0.146213,67236.0,67235.0,0.1]
[1718101162412,0.146213,67236.0,67235.0,0.099705]
[1718101163249,0.16408004,67236.0,67235.0,0.099705]
[1718101164066,0.17808004,67236.0,67235.0,0.099705]
[1718101165060,0.19208004,67236.0,67235.0,0.099705]
[1718101166111,0.10538004,67236.0,67235.0,0.099705]
[1718101167581,0.09138004,67236.0,67235.0,0.099705]
[1718101167803,0.09038004,67236.0,67231.0,0.1]
[1718101168062,0.09038004,67236.0,67225.0,0.2]
[1718101168063,0.03166169,67227.0,67225.0,0.0445132]
[1718101168293,0.5,67231.0,67222.0,0.04997747]
[1718101168294,0.148757,67224.0,67222.0,0.04997747]
[1718101168518,0.148757,67224.0,67221.0,0.1]
[1718101168519,0.0867,67223.0,67221.0,0.1]
[1718101169467,0.19250524,67222.0,67221.0,0.1]
[1718101169894,0.36113759,67222.0,67221.0,0.1]
[1718101170313,0.19250524,67222.0,67221.0,0.1]
[1718101171342,0.20650524,67222.0,67221.0,0.1]
[1718101171544,0.20650524,67222.0,67221.0,0.101]
[1718101171749,0.22050524,67222.0,67221.0,0.101]
[1718101172374,0.22050524,67222.0,67221.0,0.100705]
[1718101175499,0.10517179,67222.0,67221.0,0.100705]
[1718101176743,0.10517179,67222.0,67221.0,0.000705]
[1718101178733,0.028,67222.0,67221.0,0.000705]
[1718101179056,0.10517107,67222.0,67221.0,0.000705]
[1718101181011,0.07717107,67222.0,67220.0,0.199705]
[1718101181222,0.07717107,67221.0,67220.0,0.199705]
[1718101181668,0.07717107,67221.0,67220.0,0.7012279]
[1718101181878,0.014,67222.0,67220.0,0.7012279]
[1718101181879,0.026,67222.0,67221.0,0.3]
[1718101182088,0.026,67222.0,67221.0,0.24431993]
[1718101182307,0.026,67222.0,67221.0,0.24402493]
[1718101182507,0.012,67222.0,67221.0,0.24402493]
[1718101182719,0.012,67222.0,67220.0,0.1]
[1718101182720,0.08916532,67222.0,67220.0,0.1]
[1718101182926,0.026,67222.0,67221.0,0.37186496]
[1718101183153,0.1031677,67222.0,67221.0,0.17186496]
[1718101183367,0.1031677,67222.0,67221.0,0.37186496]
[1718101183783,0.012,67222.0,67221.0,0.37186496]
[1718101184009,0.51667176,67228.0,67222.0,0.6842]
[1718101184257,0.07716385,67227.0,67222.0,0.82851993]
[1718101184693,0.07716385,67227.0,67223.0,0.2]
[1718101185107,0.07716385,67227.0,67222.0,0.82851993]
[1718101185331,0.07716385,67227.0,67223.0,0.34431993]
[1718101185544,0.07716385,67227.0,67222.0,0.82951993]
[1718101185967,0.07716385,67227.0,67226.0,0.2]
[1718101186172,0.07716385,67227.0,67224.0,0.2]
[1718101186580,0.07716385,67227.0,67225.0,0.14431993]
[1718101186786,0.07716385,67227.0,67226.0,0.099705]
[1718101186986,0.10016385,67227.0,67226.0,0.44402493]
[1718101187770,0.10916385,67227.0,67226.0,0.44402493]
[1718101187977,0.08616385,67227.0,67226.0,0.44402493]
[1718101188429,0.09816385,67227.0,67226.0,0.44502493]
[1718101188680,0.021,67227.0,67226.0,1.40534639]
[1718101189551,0.034,67227.0,67226.0,1.40534639]
[1718101189977,0.01791167,67238.0,67232.0,0.099705]
[1718101190192,0.01791167,67238.0,67234.0,0.099705]
[1718101190398,0.0780089,67235.0,67234.0,0.44402493]
[1718101190863,0.0780089,67235.0,67234.0,0.24402493]
[1718101191292,0.0780089,67235.0,67234.0,1.34359581]
[1718101191293,0.00886,67235.0,67234.0,1.34359581]
[1718101191958,0.01686,67235.0,67234.0,1.34459581]
[1718101192839,0.09400823,67235.0,67234.0,1.34459581]
[1718101193262,0.08600823,67235.0,67234.0,1.34459581]
[1718101193692,0.09600823,67235.0,67234.0,1.34459581]
[1718101193896,0.09500823,67235.0,67234.0,1.48891574]
[1718101194976,0.01786,67235.0,67234.0,1.58891574]
[1718101199700,0.01786,67235.0,67234.0,1.59891574]
[1718101200286,0.01786,67235.0,67234.0,1.58891574]
[1718101200444,0.01786,67235.0,67234.0,1.57324986]
[1718101200644,0.01786,67235.0,67234.0,1.58891574]
[1718101200995,0.01786,67235.0,67234.0,0.80471574]
[1718101201366,0.01786,67235.0,67234.0,0.34502493]
[1718101201746,0.01786,67235.0,67234.0,0.200705]
[1718101201942,0.09501608,67235.0,67234.0,0.200705]
[1718101203258,0.09501608,67235.0,67234.0,0.100705]
[1718101203681,0.09501608,67235.0,67234.0,0.200705]
[1718101204131,0.09587608,67235.0,67234.0,0.200705]
[1718101204599,0.09587476,67235.0,67234.0,0.200705]
[1718101205003,0.09587476,67235.0,67234.0,0.68046631]
[1718101205605,0.01872,67235.0,67234.0,0.68046631]
[1718101206208,0.00872,67235.0,67234.0,0.68046631]
[1718101206458,0.00872,67235.0,67234.0,0.92590031]
[1718101206671,0.01472,67235.0,67234.0,1.71190031]
[1718101207029,0.01472,67235.0,67234.0,1.79860031]
[1718101207234,0.00872,67235.0,67234.0,1.79860031]
[1718101207715,0.00186,67235.0,67234.0,1.79760031]
[1718101208132,0.00086,67235.0,67234.0,1.79760031]
[1718101208553,0.00386,67235.0,67234.0,1.79760031]
[1718101208870,0.00386,67235.0,67234.0,1.71090031]
[1718101209080,0.00386,67235.0,67234.0,1.86750031]
[1718101209279,0.00086,67235.0,67234.0,1.86750031]
[1718101209683,0.00086,67235.0,67234.0,1.87250031]
[1718101210294,0.00086,67235.0,67234.0,1.87450031]
[1718101211114,0.00086,67235.0,67234.0,1.86750031]
[1718101211337,0.00186,67235.0,67234.0,1.87650031]
[1718101211503,0.00286,67235.0,67234.0,1.88050031]
[1718101212072,0.00286,67235.0,67234.0,1.71390031]
[1718101212521,0.00286,67235.0,67234.0,0.67680043]
[1718101213394,0.00286,67235.0,67234.0,0.65672993]
[1718101213615,0.00186,67235.0,67234.0,0.45272993]
[1718101213824,0.00286,67235.0,67234.0,0.35702493]
[1718101214041,0.08000896,67235.0,67234.0,0.35702493]
[1718101214238,0.07800896,67235.0,67234.0,0.34402493]
[1718101214472,0.07800896,67235.0,67234.0,0.44372993]
[1718101214695,0.07800896,67235.0,67234.0,0.74020969]
[1718101214951,0.00086,67235.0,67234.0,0.74020969]
[1718101215161,0.00186,67235.0,67234.0,0.67039581]
[1718101215594,0.00086,67235.0,67234.0,0.66239581]
[1718101215811,0.00286,67235.0,67234.0,1.41979581]
[1718101216033,0.00286,67235.0,67234.0,1.56852981]
[1718101216497,0.00286,67235.0,67234.0,1.56552981]
[1718101216708,0.00286,67235.0,67234.0,1.71984974]
[1718101216929,0.00786,67235.0,67234.0,1.70984974]
[1718101217290,0.00086,67235.0,67234.0,1.71984974]
[1718101217716,0.00186,67235.0,67234.0,1.72484974]
[1718101217888,0.00186,67235.0,67234.0,1.71284974]
[1718101218346,0.00286,67235.0,67234.0,1.72084974]
[1718101218549,0.00286,67235.0,67234.0,1.71784974]
[1718101218550,0.00268099,67235.0,67234.0,1.71784974]
[1718101218904,0.00068099,67235.0,67234.0,1.70984974]
[1718101219314,0.00168099,67235.0,67234.0,1.72784974]
[1718101219964,0.00268099,67235.0,67234.0,1.73184974]
[1718101220508,0.00168099,67235.0,67234.0,1.72784974]
[1718101220720,0.00168099,67235.0,67234.0,1.72384974]
[1718101220721,0.00068099,67235.0,67234.0,1.72384974]
[1718101220919,0.00168099,67235.0,67234.0,1.73184974]
[1718101221190,0.00268099,67235.0,67234.0,1.72384974]
[1718101221603,0.00368099,67235.0,67234.0,1.72184974]
[1718101221800,0.00368099,67235.0,67234.0,1.73184974]
[1718101222225,0.00368099,67235.0,67234.0,1.83184974]
[1718101223826,0.00368099,67235.0,67234.0,1.82184974]
[1718101224048,0.00368099,67235.0,67234.0,0.90004986]
[1718101224255,0.00368099,67235.0,67234.0,0.81571574]
[1718101224674,0.00368099,67235.0,67234.0,0.80004986]
[1718101225328,0.00368099,67235.0,67234.0,0.81571574]
[1718101225533,0.00168099,67235.0,67234.0,0.80771574]
[1718101226156,0.00068099,67235.0,67234.0,0.80371574]
[1718101226373,0.00068099,67235.0,67234.0,0.78804986]
[1718101226603,0.00368099,67235.0,67234.0,0.78804986]
[1718101226827,0.08082922,67235.0,67234.0,0.44372993]
[1718101227058,0.08082922,67235.0,67224.0,0.1]
[1718101227059,0.07782922,67235.0,67227.0,0.099705]
[1718101227268,0.148737,67233.0,67227.0,0.09737006]
[1718101227495,0.18639203,67232.0,67227.0,0.09737006]
[1718101227727,0.64740251,67233.0,67227.0,0.09737006]
[1718101227728,0.18639203,67231.0,67227.0,0.09737006]
[1718101227962,0.18639203,67230.0,67227.0,0.09737006]
[1718101228195,0.64740251,67233.0,67227.0,0.09737006]
[1718101228196,0.18639203,67229.0,67227.0,0.09737006]
[1718101228661,0.18639203,67228.0,67227.0,0.09737006]
[1718101229045,0.18639203,67228.0,67227.0,0.09837006]
[1718101229695,0.18639203,67228.0,67227.0,0.19907506]
[1718101229904,0.07714823,67228.0,67227.0,0.19907506]
[1718101230109,0.07714823,67228.0,67227.0,0.19807506]
[1718101230318,0.07714823,67228.0,67227.0,0.39707506]
[1718101230525,0.09114823,67228.0,67227.0,0.39707506]
[1718101230661,0.09114823,67228.0,67227.0,0.39807506]
[1718101230873,0.09114823,67228.0,67227.0,0.19707506]
[1718101231094,0.014,67228.0,67227.0,0.77683845]
[1718101231301,0.028,67228.0,67227.0,0.92658745]
[1718101231721,0.04172068,67228.0,67227.0,0.93558745]
[1718101231928,0.028,67228.0,67227.0,0.93658745]
[1718101232137,0.037,67228.0,67227.0,0.93658745]
[1718101232345,0.023,67228.0,67227.0,0.93658745]
[1718101232768,0.035,67228.0,67227.0,0.93658745]
[1718101233373,0.49866551,67233.0,67232.0,0.41274094]
[1718101233594,0.49866551,67233.0,67232.0,0.65061862]
[1718101234423,0.00068099,67235.0,67234.0,0.51244594]
[1718101234581,0.00068099,67235.0,67234.0,0.65676587]
[1718101234983,0.00068099,67235.0,67234.0,0.80549987]
[1718101236434,0.00068099,67235.0,67234.0,1.30489987]
[1718101236668,0.00068099,67235.0,67234.0,1.40993597]
[1718101237313,0.00968099,67235.0,67234.0,0.76180197]
[1718101238986,0.00968099,67235.0,67234.0,0.74613609]
[1718101240242,0.00968099,67235.0,67234.0,0.34139499]
[1718101240464,0.00968099,67235.0,67234.0,0.099705]
[1718101240665,0.00968099,67235.0,67234.0,0.19707506]
[1718101240877,0.16951074,67235.0,67234.0,0.19707506]
[1718101241093,0.24200451,67235.0,67234.0,0.39707506]
[1718101241311,0.16951074,67235.0,67234.0,0.39707506]
[1718101242706,0.16951074,67235.0,67234.0,0.24831965]
[1718101242907,0.24211898,67235.0,67234.0,0.19707506]
[1718101243684,0.24211898,67235.0,67234.0,0.41274094]
[1718101243685,0.16951074,67235.0,67234.0,0.41274094]
[1718101243898,0.16951074,67235.0,67234.0,0.39707506]
[1718101244126,0.16951074,67235.0,67234.0,0.19707506]
[1718101244331,0.16951074,67235.0,67234.0,0.39707506]
[1718101244537,0.15559291,67235.0,67234.0,0.19707506]
[1718101244738,0.16153064,67235.0,67234.0,0.19707506]
[1718101244941,0.16951074,67235.0,67234.0,0.19707506]
[1718101245160,0.16951074,67235.0,67234.0,0.39707506]
[1718101245385,0.22821302,67235.0,67234.0,0.19707506]
[1718101245595,0.16153064,67235.0,67234.0,0.39707506]
[1718101245798,0.1695004,67235.0,67234.0,0.39707506]
[1718101246664,0.1695004,67235.0,67234.0,0.19707506]
[1718101246877,0.1665004,67235.0,67234.0,0.39707506]
[1718101247094,0.21903712,67235.0,67234.0,0.19707506]
[1718101247359,0.23694399,67235.0,67234.0,0.19707506]
[1718101247565,0.24194399,67235.0,67234.0,0.19707506]
[1718101247976,0.23294399,67235.0,67234.0,0.19707506]
[1718101248198,0.1605004,67235.0,67234.0,0.099705]
[1718101248421,0.24106915,67235.0,67234.0,0.099705]
[1718101248668,0.24606915,67235.0,67234.0,0.100705]
[1718101249097,0.32476915,67235.0,67234.0,0.100705]
[1718101249311,0.32399264,67235.0,67234.0,0.100705]
[1718101250210,0.23729264,67235.0,67234.0,0.100705]
[1718101250441,0.58614374,67235.0,67234.0,0.001]
[1718101250698,0.58614374,67235.0,67227.0,0.000946]
[1718101250699,0.5,67231.0,67227.0,0.000946]
[1718101250914,0.0867,67228.0,67227.0,0.000946]
[1718101251127,0.30435076,67228.0,67227.0,0.000946]
[1718101251835,0.28361555,67228.0,67227.0,0.000946]
[1718101252071,0.22699439,67228.0,67227.0,0.000946]
[1718101252309,0.31369439,67228.0,67227.0,0.000946]
[1718101252994,0.19691555,67228.0,67227.0,0.000946]
[1718101253448,0.20591555,67228.0,67227.0,0.001946]
[1718101253678,0.20591555,67228.0,67227.0,0.44497093]
[1718101253903,0.20591555,67228.0,67227.0,1.03787093]
[1718101254115,0.009,67228.0,67227.0,1.03887093]
[1718101254363,0.012,67228.0,67227.0,1.03887093]
[1718101254600,0.012,67228.0,67227.0,1.23887093]
[1718101254840,0.013,67228.0,67227.0,1.23987093]
[1718101255117,0.008,67228.0,67227.0,1.03787093]
[1718101255328,0.015,67228.0,67227.0,1.03787093]
[1718101255534,0.015,67228.0,67227.0,1.18219086]
[1718101255737,0.008,67228.0,67227.0,1.18219086]
[1718101255939,0.008,67228.0,67227.0,1.03787093]
[1718101256046,0.018,67228.0,67227.0,0.24497093]
[1718101256272,0.018,67228.0,67227.0,0.70675587]
[1718101256472,0.022,67228.0,67227.0,1.01985587]
[1718101256679,0.01,67228.0,67227.0,1.59172795]
[1718101257136,0.018,67228.0,67227.0,1.59272795]
[1718101257312,0.018,67228.0,67227.0,1.59172795]
[1718101257515,0.008,67228.0,67227.0,1.59172795]
[1718101257950,0.015,67228.0,67227.0,1.59172795]
[1718101258126,0.015,67228.0,67227.0,0.24263599]
[1718101258127,0.007,67228.0,67227.0,0.24263599]
[1718101258330,0.5,67234.0,67228.0,0.09737006]
[1718101258537,0.2942114,67233.0,67230.0,0.09737006]
[1718101258742,0.2083061,67232.0,67230.0,0.09737006]
[1718101258973,0.2083061,67231.0,67230.0,0.09737006]
[1718101259378,0.3570461,67231.0,67227.0,0.000946]
[1718101259646,0.3570461,67231.0,67230.0,0.19707506]
[1718101259647,0.16376003,67231.0,67230.0,0.19707506]
[1718101259782,0.43987538,67231.0,67230.0,0.19707506]
[1718101259993,0.44575328,67231.0,67230.0,0.19707506]
[1718101260659,0.44575328,67231.0,67230.0,1.62241098]
[1718101260877,0.18245365,67231.0,67230.0,0.3811971]
[1718101261311,0.18245365,67231.0,67230.0,0.34139499]
[1718101261536,0.15431978,67231.0,67230.0,0.34139499]
[1718101261774,0.19057602,67231.0,67230.0,0.54139499]
[1718101262215,0.20357602,67231.0,67230.0,0.54239499]
[1718101262428,0.20357602,67231.0,67230.0,0.34239499]
[1718101262640,0.18131978,67231.0,67230.0,0.34239499]
[1718101263722,0.18131978,67231.0,67230.0,0.19807506]
[1718101264151,0.19512522,67231.0,67230.0,0.70763848]
[1718101264371,0.04080544,67231.0,67230.0,1.17533848]
[1718101264586,0.19510807,67231.0,67230.0,1.64688148]
[1718101264801,0.18130263,67231.0,67230.0,1.59700887]
[1718101266525,0.18129975,67231.0,67230.0,1.59700887]
[1718101268913,0.18215975,67231.0,67230.0,1.59700887]
[1718101269336,0.18215975,67231.0,67230.0,1.7413288]
[1718101270585,0.18215975,67231.0,67230.0,1.59700887]
[1718101271869,0.18215191,67231.0,67230.0,1.59700887]
[1718101273461,0.18215191,67231.0,67230.0,1.82380887]
[1718101273874,0.18215191,67231.0,67230.0,1.81380887]
[1718101274215,0.18215191,67231.0,67230.0,1.60700887]
[1718101274421,0.18215191,67231.0,67230.0,1.7503288]
[1718101274422,0.16915191,67231.0,67230.0,1.7503288]
[1718101274757,0.15515191,67231.0,67230.0,1.7503288]
[1718101274905,0.16615191,67231.0,67230.0,1.7503288]
[1718101275107,0.01186,67231.0,67230.0,1.7503288]
[1718101275334,0.01186,67231.0,67230.0,1.7403288]
[1718101280509,0.01186,67231.0,67230.0,1.7503288]
[1718101280627,0.01186,67231.0,67230.0,1.7403288]
[1718101281745,0.00486,67231.0,67230.0,1.7503288]
[1718101282244,0.00286,67231.0,67230.0,1.7503288]
[1718101282448,0.00386,67231.0,67230.0,1.7463288]
[1718101282651,0.00386,67231.0,67230.0,1.7563288]
[1718101283188,0.00386,67231.0,67230.0,1.9129288]
[1718101283628,0.00186,67231.0,67230.0,1.9129288]
[1718101283829,0.00186,67231.0,67230.0,1.9089288]
[1718101284238,0.00286,67231.0,67230.0,1.9159288]
[1718101284442,0.00086,67231.0,67230.0,1.9069288]
[1718101284840,0.00286,67231.0,67230.0,1.9169288]
[1718101285250,0.00186,67231.0,67230.0,1.9099288]
[1718101285447,0.00286,67231.0,67230.0,1.9169288]
[1718101287081,0.00286,67231.0,67230.0,2.3144148]
[1718101288130,0.00286,67231.0,67230.0,2.0069288]
[1718101288338,0.00286,67231.0,67230.0,1.8503288]
[1718101288542,0.00286,67231.0,67230.0,1.7503288]
[1718101289383,0.00263805,67231.0,67230.0,1.7503288]
[1718101296058,0.00263805,67231.0,67230.0,1.9039288]
[1718101296059,0.00163805,67231.0,67230.0,1.9039288]
[1718101296496,0.00263805,67231.0,67230.0,1.9109288]
[1718101296720,0.00263805,67231.0,67230.0,1.9139288]
[1718101296932,0.00063805,67231.0,67230.0,1.8969288]
[1718101297143,0.00163805,67231.0,67230.0,1.9169288]
[1718101297417,0.00263805,67231.0,67230.0,1.9139288]
[1718101297628,0.00263805,67231.0,67230.0,1.9039288]
[1718101297898,0.00263805,67231.0,67230.0,1.9069288]
[1718101299912,0.00363805,67231.0,67230.0,1.9139288]
[1718101302097,0.00363805,67231.0,67230.0,1.9239288]
[1718101304901,0.00363805,67231.0,67230.0,2.0106288]
[1718101305741,0.00363805,67231.0,67230.0,2.0006288]
[1718101306726,0.00363805,67231.0,67230.0,2.0106288]
[1718101307357,0.00363805,67231.0,67230.0,2.3081148]
[1718101307933,0.00363805,67231.0,67230.0,2.57459299]
[1718101308136,0.00363805,67231.0,67230.0,2.75234289]
[1718101309610,0.00363805,67231.0,67230.0,2.76113696]
[1718101310497,0.00363805,67231.0,67230.0,2.76072714]
[1718101311581,0.00363805,67231.0,67230.0,2.74072714]
[1718101314139,0.00263805,67231.0,67230.0,2.74072714]
[1718101315358,0.00263805,67231.0,67230.0,2.6739031]
[1718101321264,0.00263805,67231.0,67230.0,2.40742491]
[1718101321494,0.00263805,67231.0,67230.0,2.01323891]
[1718101321697,0.00263805,67231.0,67230.0,1.26730888]
[1718101321916,0.00263805,67231.0,67230.0,1.1901288]
[1718101322546,0.15691969,67231.0,67230.0,1.1901288]
[1718101323200,0.15691976,67231.0,67230.0,1.1901288]
[1718101323409,0.15691976,67231.0,67230.0,0.78241992]
[1718101324067,0.15691976,67231.0,67230.0,0.7980858]
[1718101324273,0.15691976,67231.0,67230.0,0.78241992]
[1718101324491,0.15528171,67231.0,67230.0,0.7880858]
[1718101324887,0.15528171,67231.0,67230.0,0.7970858]
[1718101325291,0.15528171,67231.0,67230.0,0.7880858]
[1718101325630,0.15528171,67231.0,67230.0,0.7910858]
[1718101325849,0.15428171,67231.0,67230.0,0.76841992]
[1718101326266,0.15428171,67231.0,67230.0,0.62409999]
[1718101326478,0.15428171,67231.0,67230.0,0.42409999]
[1718101326682,0.16023494,67231.0,67230.0,0.62409999]
[1718101326826,0.16506632,67231.0,67230.0,0.43109999]
[1718101327032,0.16506632,67231.0,67230.0,0.49587118]
[1718101327399,0.16406632,67231.0,67230.0,0.48887118]
[1718101327847,0.16406632,67231.0,67230.0,0.48987118]
[1718101328269,0.16406632,67231.0,67230.0,0.68987118]
[1718101328868,0.16406632,67231.0,67230.0,0.68687118]
[1718101329471,0.16406632,67231.0,67230.0,0.48687118]
[1718101329754,0.16406632,67231.0,67230.0,0.68687118]
[1718101329937,0.15428171,67231.0,67230.0,0.68587118]
[1718101330137,0.00068099,67235.0,67234.0,0.09737006]
[1718101330288,0.14565584,67235.0,67234.0,0.40998211]
[1718101330490,0.15544045,67235.0,67234.0,0.40998211]
[1718101331095,0.15544045,67235.0,67234.0,0.62564799]
[1718101331299,0.15544045,67235.0,67234.0,0.49668211]
[1718101331498,0.15365584,67235.0,67234.0,0.41098211]
[1718101331901,0.16344045,67235.0,67234.0,0.41098211]
[1718101332695,0.16344045,67235.0,67234.0,0.62664799]
[1718101332890,0.16344045,67235.0,67234.0,0.41098211]
[1718101333576,0.16644045,67235.0,67234.0,0.41098211]
[1718101334219,0.16644045,67235.0,67234.0,0.34239499]
[1718101339919,0.16644045,67235.0,67234.0,0.14531993]
[1718101340039,0.31517245,67235.0,67234.0,0.001]
[1718101340464,0.36081235,67235.0,67234.0,0.001]
[1718101340667,0.21208035,67235.0,67234.0,0.001]
[1718101340949,0.18871483,67235.0,67234.0,0.001]
[1718101341148,0.0134656,67235.0,67232.0,0.09737006]
[1718101341352,0.1543049,67234.0,67232.0,0.24168999]
[1718101341553,0.1543049,67233.0,67232.0,0.24168999]
[1718101341757,0.16399067,67233.0,67232.0,0.24168999]
[1718101343045,0.16399067,67233.0,67232.0,0.40526078]
[1718101343046,0.16799067,67233.0,67232.0,0.40526078]
[1718101343248,0.16798664,67233.0,67232.0,0.34139499]
[1718101343662,0.17398664,67233.0,67232.0,0.34239499]
[1718101349283,0.21949696,67233.0,67232.0,0.34239499]
[1718101349502,0.21949696,67233.0,67232.0,0.54239499]
[1718101349920,0.21949696,67233.0,67232.0,1.29996087]
[1718101350135,0.16430192,67233.0,67232.0,1.98203166]
[1718101350374,0.16430192,67233.0,67232.0,1.97203166]
[1718101350633,0.01,67233.0,67232.0,1.97203166]
[1718101351071,0.01,67233.0,67232.0,1.98203166]
[1718101351297,0.006,67233.0,67232.0,2.13853166]
[1718101351511,0.00068099,67235.0,67234.0,1.45407494]
[1718101351727,0.00068099,67235.0,67234.0,1.8427148]
[1718101352988,0.00168099,67235.0,67234.0,1.8527148]
[1718101353819,0.00268099,67235.0,67234.0,1.8597148]
[1718101354556,0.00168099,67235.0,67234.0,1.8497148]
[1718101354710,0.00168099,67235.0,67234.0,1.8597148]
[1718101354916,0.00268099,67235.0,67234.0,1.8597148]
[1718101362270,0.00268099,67235.0,67234.0,2.01985889]
[1718101362488,0.00268099,67235.0,67234.0,2.04211489]
[1718101362670,0.00268099,67235.0,67234.0,1.97534691]
[1718101362990,0.00268099,67235.0,67234.0,2.04211489]
[1718101363218,0.00268099,67235.0,67234.0,1.97534691]
[1718101363400,0.00268099,67235.0,67234.0,2.06204691]
[1718101363794,0.00268099,67235.0,67234.0,2.10654799]
[1718101365419,0.00268099,67235.0,67234.0,2.06204691]
[1718101365619,0.00268099,67235.0,67234.0,2.10654799]
[1718101366056,0.00268099,67235.0,67234.0,2.06204691]
[1718101367509,0.00268099,67235.0,67234.0,2.35951491]
[1718101368162,0.00268099,67235.0,67234.0,2.27281491]
[1718101368336,0.00268099,67235.0,67234.0,2.35951491]
[1718101369420,0.00268099,67235.0,67234.0,2.2438828]
[1718101371279,0.00268099,67235.0,67234.0,2.66061499]
[1718101371492,0.00268099,67235.0,67234.0,2.92738297]
[1718101371701,0.00268099,67235.0,67234.0,2.72738297]
[1718101371917,0.00268099,67235.0,67234.0,2.74963896]
[1718101372309,0.00268099,67235.0,67234.0,2.66061499]
[1718101372641,0.00168099,67235.0,67234.0,2.73963896]
[1718101373043,0.00168099,67235.0,67234.0,2.65361499]
[1718101373295,0.00168099,67235.0,67234.0,2.74251872]
[1718101373499,0.00268099,67235.0,67234.0,2.74951872]
[1718101374967,0.00268099,67235.0,67234.0,2.66281872]
[1718101375166,0.00268099,67235.0,67234.0,2.66061499]